{"text_format":"3","workbook":"xlsx","n_sheets":4,"sheets":["Sammanfattning","Tillgångar","Skulder","Kategorier"],"not_rendered":{"defined_names":10},"read":"whole","date_system":"1900"}

{"sheet":"Sammanfattning","index":0,"n_rows":12,"n_cols":4,"rows_kept":12}
[null,"Balansräkning"]
[null,null,{"$f":"\"RÅ-\"&YEAR(TODAY())-1","v":"RÅ-2016"},{"$f":"\"RÅ-\"&YEAR(TODAY())","v":"RÅ-2017"}]
[null,"Tillgångstyp","Föregående år","Innevarande år"]
[null,"Omsättningstillgångar",{"$f":"SUMIFS(Tillgångar[Föregående år],Tillgångar[Tillgångstyp],Instrumentpanel[[#This Row],[Tillgångstyp]])+SUMIFS(Skulder[Föregående år],Skulder[Skuldtyp],Instrumentpanel[[#This Row],[Tillgångstyp]])","v":600},{"$f":"SUMIFS(Tillgångar[Innevarande år],Tillgångar[Tillgångstyp],Instrumentpanel[[#This Row],[Tillgångstyp]])+SUMIFS(Skulder[Innevarande år],Skulder[Skuldtyp],Instrumentpanel[[#This Row],[Tillgångstyp]])","v":600}]
[null,"Anläggningstillgångar",{"$f":"SUMIFS(Tillgångar[Föregående år],Tillgångar[Tillgångstyp],Instrumentpanel[[#This Row],[Tillgångstyp]])+SUMIFS(Skulder[Föregående år],Skulder[Skuldtyp],Instrumentpanel[[#This Row],[Tillgångstyp]])","v":{"v":-100,"d":"-100 "}},{"$f":"SUMIFS(Tillgångar[Innevarande år],Tillgångar[Tillgångstyp],Instrumentpanel[[#This Row],[Tillgångstyp]])+SUMIFS(Skulder[Innevarande år],Skulder[Skuldtyp],Instrumentpanel[[#This Row],[Tillgångstyp]])","v":{"v":-85,"d":"-85 "}}]
[null,"Övriga tillgångar",{"$f":"SUMIFS(Tillgångar[Föregående år],Tillgångar[Tillgångstyp],Instrumentpanel[[#This Row],[Tillgångstyp]])+SUMIFS(Skulder[Föregående år],Skulder[Skuldtyp],Instrumentpanel[[#This Row],[Tillgångstyp]])","v":0},{"$f":"SUMIFS(Tillgångar[Innevarande år],Tillgångar[Tillgångstyp],Instrumentpanel[[#This Row],[Tillgångstyp]])+SUMIFS(Skulder[Innevarande år],Skulder[Skuldtyp],Instrumentpanel[[#This Row],[Tillgångstyp]])","v":0}]
[null,"Kortfristiga skulder",{"$f":"SUMIFS(Tillgångar[Föregående år],Tillgångar[Tillgångstyp],Instrumentpanel[[#This Row],[Tillgångstyp]])+SUMIFS(Skulder[Föregående år],Skulder[Skuldtyp],Instrumentpanel[[#This Row],[Tillgångstyp]])","v":500},{"$f":"SUMIFS(Tillgångar[Innevarande år],Tillgångar[Tillgångstyp],Instrumentpanel[[#This Row],[Tillgångstyp]])+SUMIFS(Skulder[Innevarande år],Skulder[Skuldtyp],Instrumentpanel[[#This Row],[Tillgångstyp]])","v":350}]
[null,"Långsiktiga skulder",{"$f":"SUMIFS(Tillgångar[Föregående år],Tillgångar[Tillgångstyp],Instrumentpanel[[#This Row],[Tillgångstyp]])+SUMIFS(Skulder[Föregående år],Skulder[Skuldtyp],Instrumentpanel[[#This Row],[Tillgångstyp]])","v":0},{"$f":"SUMIFS(Tillgångar[Innevarande år],Tillgångar[Tillgångstyp],Instrumentpanel[[#This Row],[Tillgångstyp]])+SUMIFS(Skulder[Innevarande år],Skulder[Skuldtyp],Instrumentpanel[[#This Row],[Tillgångstyp]])","v":0}]
[null,"Ägarkapital",{"$f":"SUMIFS(Tillgångar[Föregående år],Tillgångar[Tillgångstyp],Instrumentpanel[[#This Row],[Tillgångstyp]])+SUMIFS(Skulder[Föregående år],Skulder[Skuldtyp],Instrumentpanel[[#This Row],[Tillgångstyp]])","v":0},{"$f":"SUMIFS(Tillgångar[Innevarande år],Tillgångar[Tillgångstyp],Instrumentpanel[[#This Row],[Tillgångstyp]])+SUMIFS(Skulder[Innevarande år],Skulder[Skuldtyp],Instrumentpanel[[#This Row],[Tillgångstyp]])","v":350}]
[null,"Summa tillgångar",{"$f":"Tillgångar[[#Totals],[Föregående år]]","v":500},{"$f":"Tillgångar[[#Totals],[Innevarande år]]","v":515}]
[null,"Summa skulder och aktieägarkapital",{"$f":"Skulder[[#Totals],[Föregående år]]","v":500},{"$f":"Skulder[[#Totals],[Innevarande år]]","v":700}]
[null,"Saldo",{"$f":"C10-C11","v":0},{"$f":"D10-D11","v":{"v":-185,"d":"-185 "}}]

{"sheet":"Tillgångar","index":1,"n_rows":14,"n_cols":5,"rows_kept":14}
[null,"Tillgångar"]
[{"$nulls":3},{"$f":"RÅ_ÅR","v":"RÅ-2016"},{"$f":"RÅ_ÅR_2","v":"RÅ-2017"}]
[null,"Tillgångstyp","Beskrivning","Föregående år","Innevarande år"]
[null,"Omsättningstillgångar","Kontanter",600,600]
[null,"Omsättningstillgångar","Investeringar"]
[null,"Omsättningstillgångar","Inventarier"]
[null,"Omsättningstillgångar","Kundreskontra"]
[null,"Omsättningstillgångar","Förbetalda utgifter"]
[null,"Anläggningstillgångar","Anläggning och utrustning"]
[null,"Anläggningstillgångar","Förbättringar av hyrd lokal"]
[null,"Anläggningstillgångar","Kapital och andra investeringar"]
[null,"Anläggningstillgångar","Mindre ackumulerad avskrivning (negativt värde)",{"v":-100,"d":"-100 "},{"v":-85,"d":"-85 "}]
[null,"Övriga tillgångar","Välgörenhet"]
[null,"Summa tillgångar",null,{"$f":"SUBTOTAL(109,Tillgångar[Föregående år])","v":500},{"$f":"SUBTOTAL(109,Tillgångar[Innevarande år])","v":515}]

{"sheet":"Skulder","index":2,"n_rows":12,"n_cols":5,"rows_kept":12}
[null,"Skulder"]
[{"$nulls":3},{"$f":"RÅ_ÅR","v":"RÅ-2016"},{"$f":"RÅ_ÅR_2","v":"RÅ-2017"}]
[null,"Skuldtyp","Beskrivning","Föregående år","Innevarande år"]
[null,"Kortfristiga skulder","Leverantörsskulder",null,350]
[null,"Kortfristiga skulder","Upplupna löner"]
[null,"Kortfristiga skulder","Upplupen ersättning",500]
[null,"Kortfristiga skulder","Inkomstskatt"]
[null,"Kortfristiga skulder","Obearbetade intäkter"]
[null,"Långsiktiga skulder","Amortering"]
[null,"Ägarkapital","Investeringskapital",null,350]
[null,"Ägarkapital","Ackumulerad balanserad vinst"]
[null,"Summa skulder och aktieägarkapital",null,{"$f":"SUBTOTAL(109,Skulder[Föregående år])","v":500},{"$f":"SUBTOTAL(109,Skulder[Innevarande år])","v":700}]

{"sheet":"Kategorier","index":3,"n_rows":9,"n_cols":2,"rows_kept":9}
[null,"Kategorier"]
[]
[null,"Kategorier"]
[null,"Omsättningstillgångar"]
[null,"Anläggningstillgångar"]
[null,"Övriga tillgångar"]
[null,"Kortfristiga skulder"]
[null,"Långsiktiga skulder"]
[null,"Ägarkapital"]